fUSD/lending_fUSD_20260311
["ID","MTS","AMOUNT","RATE_DAILY","PERIOD"]
[408229646,1773268260587,-500.0,0.00046575,2]
[408229647,1773268260598,-500.0,0.00046575,2]
[408229648,1773268260607,-222.85579708,0.00046575,2]
[408229649,1773268260616,-500.0,0.00046575,2]
[408229650,1773268260626,-500.0,0.00046575,2]
[408229651,1773268260636,-500.0,0.00046575,2]
[408229652,1773268260646,-500.0,0.00046575,2]
[408229653,1773268260655,-500.0,0.00046575,2]
[408229654,1773268260665,-500.0,0.00046575,2]
[408229655,1773268260675,-500.0,0.00046575,2]
[408229656,1773268260684,-500.0,0.00046575,2]
[408229657,1773268260694,-500.0,0.00046575,2]
[408229658,1773268260704,-500.0,0.00046575,2]
[408229659,1773268260713,-500.0,0.00046575,2]
[408229660,1773268260725,-500.0,0.00046575,2]
[408229661,1773268260734,-614.85589965,0.00046575,2]
[408229662,1773268260744,-500.0,0.00046575,2]
[408229663,1773268260754,-500.0,0.00046575,2]
[408229664,1773268260764,-500.0,0.00046575,2]
[408229665,1773268260773,-500.0,0.00046575,2]
[408229666,1773268260782,-500.0,0.00046575,2]
[408229667,1773268260791,-500.0,0.00046575,2]
[408229668,1773268260800,-257.60948774,0.00046575,2]
[408229669,1773268260810,-300.0,0.00046575,2]
[408229670,1773268260819,-300.0,0.00046575,2]
[408229671,1773268260829,-300.0,0.00046575,2]
[408229672,1773268260838,-300.0,0.00046575,2]
[408229673,1773268260847,-300.0,0.00046575,2]
[408229674,1773268260857,-300.0,0.00046575,2]
[408229675,1773268260866,-300.0,0.00046575,2]
[408229676,1773268260876,-300.0,0.00046575,2]
[408229677,1773268260885,-300.0,0.00046575,2]
[408229678,1773268260894,-300.0,0.00046575,2]
[408229679,1773268260903,-300.0,0.00046575,2]
[408229680,1773268260912,-300.0,0.00046575,2]
[408229681,1773268260922,-300.0,0.00046575,2]
[408229682,1773268260932,-421.31905574,0.00046575,2]
[408229683,1773268260941,-500.0,0.00046575,2]
[408229684,1773268260951,-500.0,0.00046575,2]
[408229685,1773268260960,-500.0,0.00046575,2]
[408229686,1773268260969,-500.0,0.00046575,2]
[408229687,1773268260978,-500.0,0.00046575,2]
[408229688,1773268260987,-500.0,0.00046575,2]
[408229689,1773268260997,-500.0,0.00046575,2]
[408229690,1773268261006,-500.0,0.00046575,2]
[408229691,1773268261015,-500.0,0.00046575,2]
[408229692,1773268261024,-500.0,0.00046575,2]
[408229693,1773268261034,-500.0,0.00046575,2]
[408229694,1773268261043,-500.0,0.00046575,2]
[408229695,1773268261052,-500.0,0.00046575,2]
[408229696,1773268261061,-500.0,0.00046575,2]
[408229697,1773268261070,-500.0,0.00046575,2]
[408229698,1773268261079,-355.76479115,0.00046575,2]
[408229699,1773268261088,-300.0,0.00046575,30]
[408229700,1773268261098,-300.0,0.00046575,30]
[408229701,1773268261107,-400.0,0.00046575,120]
[408229702,1773268261115,-320.05,0.00046575,120]
[408229703,1773268261125,-158.48448498,0.0004674,30]
[408229704,1773268261135,-1500.0,0.000468,53]
[408229705,1773268261144,-500.0,0.00046895,120]
[408229706,1773268261153,-848.0,0.00046911,16]
[408229707,1773268261292,-160.18216998,0.00046997,2]
[408229708,1773268261303,-21271.69012063,0.00047,120]
[408229709,1773268261312,-279.3671185,0.00047234,4]
[408229710,1773268261321,-288.01,0.00047245,120]
[408229711,1773268261330,-158.48448498,0.0004726,30]
[408229712,1773268261339,-557.19707336,0.00047278,112]
[408229713,1773268261348,-1500.0,0.000473,53]
[408229714,1773268261358,-1000.0,0.00047394,14]
[408229715,1773268261367,-150.0,0.000474,113]
[408229716,1773268261377,-986.218308,0.00047414,2]
[408229717,1773268261386,-814.0,0.00047425,120]
[408229718,1773268261396,-157.22175823,0.00047435,60]
[408229719,1773268261406,-500.0,0.0004747,120]
[408229720,1773268261415,-500.0,0.0004747,30]
[408229721,1773268261424,-180.65596028,0.0004747,2]
[408229722,1773268261434,-500.0,0.0004747,120]
[408229723,1773268261443,-500.0,0.0004747,120]
[408229724,1773268261453,-506.85,0.0004747,120]
[408229725,1773268261462,-506.85,0.0004747,120]
[408229726,1773268261472,-500.0,0.0004747,120]
[408229727,1773268261481,-500.0,0.0004747,120]
[408229728,1773268261493,-500.0,0.0004747,120]
[408229729,1773268261503,-500.0,0.0004747,120]
[408229730,1773268261513,-500.0,0.0004747,120]
[408229731,1773268261523,-511.13749879,0.0004747,120]
[408229732,1773268261534,-500.0,0.0004747,30]
[408229733,1773268261544,-500.0,0.0004747,30]
[408229734,1773268261553,-500.0,0.0004747,120]
[408229735,1773268261563,-500.0,0.0004747,120]
[408229736,1773268261574,-500.0,0.0004747,120]
[408229737,1773268261583,-500.0,0.0004747,120]
[408229738,1773268261592,-500.0,0.0004747,120]
[408229739,1773268261602,-500.0,0.0004747,120]
[408229740,1773268261611,-300.0,0.0004747,30]
[408229741,1773268261621,-300.0,0.0004747,30]
[408229742,1773268261631,-800.0,0.00047482,17]
[408229743,1773268261640,-623.0623945,0.00047482,17]
[408229744,1773268261649,-150.0,0.000475,60]
[408229745,1773268261659,-2000.0,0.000475,2]
[408229746,1773268261668,-984.29021136,0.00047515,113]
[408229747,1773268261678,-1000.0,0.00047535,14]
[408229748,1773268261687,-151.0,0.00047535,60]
[408229749,1773268261696,-8235.23,0.00047535,120]
[408229750,1773268261706,-8235.23,0.00047535,120]
[408229751,1773268261715,-8235.23,0.00047535,120]
[408229752,1773268261724,-8235.23,0.00047535,120]
[408229753,1773268261734,-8235.23,0.00047535,120]
[408229754,1773268261743,-8235.23,0.00047535,120]
[408229755,1773268261752,-8235.23,0.00047535,120]
[408229756,1773268261762,-8235.23,0.00047535,120]
[408229757,1773268261772,-8235.23,0.00047535,120]
[408229758,1773268261781,-8235.23,0.00047535,120]
[408229759,1773268261791,-8235.23,0.00047535,120]
[408229760,1773268261800,-8235.23,0.00047535,120]
[408229761,1773268261810,-8235.23,0.00047535,120]
[408229762,1773268261819,-8235.23,0.00047535,120]
[408229763,1773268261829,-8235.23,0.00047535,120]
[408229764,1773268261839,-8235.23,0.00047535,120]
[408229765,1773268261848,-8235.23,0.00047535,120]
[408229766,1773268261858,-8235.23,0.00047535,120]
[408229767,1773268261867,-8235.23,0.00047535,120]
[408229768,1773268261876,-8235.23,0.00047535,120]
[408229769,1773268261886,-8235.23,0.00047535,120]
[408229770,1773268261895,-8235.23,0.00047535,120]
[408229771,1773268261904,-8235.23,0.00047535,120]
[408229772,1773268261913,-8235.27,0.00047535,120]
[408229773,1773268261922,-173.13,0.00047535,120]
[408229774,1773268261931,-173.13,0.00047535,120]
[408229775,1773268261941,-50014.69991007,0.00047535,2]
[408229776,1773268261950,-161.82556,0.00047535,60]
[408229777,1773268261959,-161.82556,0.00047535,60]
[408229778,1773268261968,-161.82556,0.00047535,60]
[408229779,1773268261978,-161.82556,0.00047535,60]
[408229780,1773268261987,-500.0,0.00047535,120]
[408229781,1773268261997,-500.0,0.00047535,120]
[408229782,1773268262006,-500.0,0.00047535,120]
[408229783,1773268262015,-500.0,0.00047535,120]
[408229784,1773268262025,-500.0,0.00047535,120]
[408229785,1773268262034,-500.0,0.00047535,120]
[408229786,1773268262043,-500.0,0.00047535,120]
[408229787,1773268262052,-500.0,0.00047535,120]
[408229788,1773268262061,-500.0,0.00047535,120]
[408229789,1773268262070,-500.0,0.00047535,120]
[408229790,1773268262079,-500.0,0.00047535,120]
[408229791,1773268262088,-500.0,0.00047535,120]
[408229792,1773268262097,-500.0,0.00047535,120]
[408229793,1773268262107,-500.0,0.00047535,120]
[408229794,1773268262116,-500.0,0.00047535,120]
[408229795,1773268262125,-500.0,0.00047535,120]
[408229796,1773268262135,-500.0,0.00047535,120]
[408229797,1773268262145,-500.0,0.00047535,120]
[408229798,1773268262154,-500.0,0.00047535,120]
[408229799,1773268262163,-500.0,0.00047535,120]
[408229800,1773268262172,-500.0,0.00047535,120]
[408229801,1773268262181,-500.0,0.00047535,120]
[408229802,1773268262191,-408.07460286,0.00047535,120]
[408229803,1773268262200,-63183.0,0.00047535,30]
[408229804,1773268262209,-280.56802864,0.00047535,14]
[408229805,1773268262219,-13073.65070403,0.00047535,30]
[408229806,1773268262229,-32908.09452438,0.00047535,120]
[408229807,1773268262238,-1811.58452742,0.00047535,120]
[408229808,1773268262248,-874.0397909,0.00047535,120]
[408229809,1773268262257,-2099.02,0.00047535,120]
[408229810,1773268262266,-1000.0,0.00047535,120]
[408229811,1773268262276,-1000.0,0.00047535,120]
[408229812,1773268262285,-1060.59,0.00047535,120]
[408229813,1773268262294,-500.0,0.00047535,120]
[408229814,1773268262303,-180.3303154,0.00047535,2]
[408229815,1773268262312,-1443.24,0.00047535,120]
[408229816,1773268262321,-1443.24,0.00047535,120]
[408229817,1773268262330,-1443.24,0.00047535,120]
[408229818,1773268262340,-1443.24,0.00047535,120]
[408229819,1773268262349,-1443.24,0.00047535,120]
[408229820,1773268262358,-1443.24,0.00047535,120]
[408229821,1773268262367,-1443.24,0.00047535,120]
[408229822,1773268262377,-1443.24,0.00047535,120]
[408229823,1773268262387,-1443.24,0.00047535,120]
[408229824,1773268262396,-1443.24,0.00047535,120]
[408229825,1773268262406,-1443.24,0.00047535,120]
[408229826,1773268262416,-1443.24,0.00047535,120]
[408229827,1773268262427,-1443.24,0.00047535,120]
[408229828,1773268262438,-1443.24,0.00047535,120]
[408229829,1773268262447,-1443.24,0.00047535,120]
[408229830,1773268262457,-1443.24,0.00047535,120]
[408229831,1773268262467,-1443.24,0.00047535,120]
[408229832,1773268262477,-1443.24,0.00047535,120]
[408229833,1773268262486,-1443.24,0.00047535,120]
[408229834,1773268262497,-1443.24,0.00047535,120]
[408229835,1773268262507,-1443.24,0.00047535,120]
[408229836,1773268262517,-1443.24,0.00047535,120]
[408229837,1773268262526,-1443.24,0.00047535,120]
[408229838,1773268262535,-1443.26400887,0.00047535,120]
[408229839,1773268262545,-161.3,0.00047535,2]
[408229840,1773268262554,-155.0,0.00047535,2]
[408229841,1773268262564,-155.0,0.00047535,2]
[408229842,1773268262575,-500.0,0.00047535,14]
[408229843,1773268262584,-500.0,0.00047535,14]
[408229844,1773268262594,-500.0,0.00047535,14]
[408229845,1773268262603,-500.0,0.00047535,14]
[408229846,1773268262612,-500.0,0.00047535,14]
[408229847,1773268262622,-500.0,0.00047535,14]
[408229848,1773268262631,-500.0,0.00047535,14]
[408229849,1773268262641,-500.0,0.00047535,14]
[408229850,1773268262650,-532.85507094,0.00047535,14]
[408229851,1773268262659,-873.31,0.00047535,2]
[408229852,1773268262668,-873.31,0.00047535,2]
[408229853,1773268262677,-873.31,0.00047535,2]
[408229854,1773268262687,-873.31,0.00047535,2]
[408229855,1773268262696,-873.31,0.00047535,2]
[408229856,1773268262705,-873.31,0.00047535,2]
[408229857,1773268262715,-873.31,0.00047535,2]
[408229858,1773268262726,-873.31,0.00047535,2]
[408229859,1773268262735,-873.31,0.00047535,2]
[408229860,1773268262744,-873.31,0.00047535,2]
[408229861,1773268262753,-873.31,0.00047535,2]
[408229862,1773268262763,-873.31,0.00047535,2]
[408229863,1773268262772,-873.31,0.00047535,2]
[408229864,1773268262781,-873.31,0.00047535,2]
[408229865,1773268262791,-873.31,0.00047535,2]
[408229866,1773268262800,-873.31,0.00047535,2]
[408229867,1773268262809,-873.31,0.00047535,2]
[408229868,1773268262819,-873.31,0.00047535,2]
[408229869,1773268262828,-873.31,0.00047535,2]
[408229870,1773268262836,-873.31,0.00047535,2]
[408229871,1773268262847,-873.31,0.00047535,2]
[408229872,1773268262856,-873.31,0.00047535,2]
[408229873,1773268262865,-873.31,0.00047535,2]
[408229874,1773268262875,-873.38557178,0.00047535,2]
[408229875,1773268262884,-500.0,0.00047535,120]
[408229876,1773268262893,-618.93,0.00047535,2]
[408229877,1773268262903,-618.93,0.00047535,2]
[408229878,1773268262912,-618.93,0.00047535,2]
[408229879,1773268262921,-618.93,0.00047535,2]
[408229880,1773268262931,-618.93,0.00047535,2]
[408229881,1773268262940,-618.93,0.00047535,2]
[408229882,1773268262950,-618.93,0.00047535,2]
[408229883,1773268262959,-618.93,0.00047535,2]
[408229884,1773268262968,-618.93,0.00047535,2]
[408229885,1773268262978,-618.93,0.00047535,2]
[408229886,1773268262987,-618.93,0.00047535,2]
[408229887,1773268262996,-618.93,0.00047535,2]
[408229888,1773268263006,-618.93,0.00047535,2]
[408229889,1773268263015,-618.93,0.00047535,2]
[408229890,1773268263025,-618.93,0.00047535,2]
[408229891,1773268263034,-618.93,0.00047535,2]
[408229892,1773268263044,-618.93,0.00047535,2]
[408229893,1773268263053,-618.93,0.00047535,2]
[408229894,1773268263062,-618.93,0.00047535,2]
[408229895,1773268263072,-618.93,0.00047535,2]
[408229896,1773268263081,-618.93,0.00047535,2]
[408229897,1773268263090,-618.93,0.00047535,2]
[408229898,1773268263100,-618.93,0.00047535,2]
[408229899,1773268263110,-619.02548954,0.00047535,2]
[408229900,1773268263119,-155.0,0.00047535,2]
[408229901,1773268263129,-155.0,0.00047535,2]
[408229902,1773268263137,-155.0,0.00047535,2]
[408229903,1773268263146,-155.0,0.00047535,2]
[408229904,1773268263155,-155.0,0.00047535,2]
[408229905,1773268263163,-155.0,0.00047535,2]
[408229906,1773268263172,-155.0,0.00047535,2]
[408229907,1773268263180,-410.88910949,0.00047535,120]
[408229908,1773268263190,-800.0,0.00047535,120]
[408229909,1773268263198,-800.0,0.00047535,120]
[408229910,1773268263207,-800.0,0.00047535,120]
[408229911,1773268263217,-800.0,0.00047535,120]
[408229912,1773268263226,-800.0,0.00047535,120]
[408229913,1773268263235,-596.72484442,0.00047535,120]
[408229914,1773268263244,-509.28193859,0.00047535,120]
[408229915,1773268263254,-292.90352013,0.00047535,2]
[408229916,1773268263263,-500.0,0.00047535,120]
[408229917,1773268263272,-500.0,0.00047535,120]
[408229918,1773268263281,-645.65088964,0.00047535,120]
[408229919,1773268263290,-3850.0,0.00047535,120]
[408229920,1773268263299,-1157.37,0.00047535,2]
[408229921,1773268263310,-1157.37,0.00047535,2]
[408229922,1773268263319,-1157.37,0.00047535,2]
[408229923,1773268263330,-1157.37,0.00047535,2]
[408229924,1773268263339,-1157.37,0.00047535,2]
[408229925,1773268263348,-1157.37,0.00047535,2]
[408229926,1773268263358,-1157.37,0.00047535,90]
[408229927,1773268263368,-1157.37,0.00047535,90]
[408229928,1773268263379,-1157.37,0.00047535,90]
[408229929,1773268263388,-1157.37,0.00047535,90]
[408229930,1773268263398,-1157.37,0.00047535,90]
[408229931,1773268263408,-1157.37,0.00047535,90]
[408229932,1773268263418,-1157.37,0.00047535,90]
[408229933,1773268263427,-1157.37,0.00047535,90]
[408229934,1773268263436,-1157.37,0.00047535,90]
[408229935,1773268263445,-1157.37,0.00047535,90]
[408229936,1773268263454,-1157.37,0.00047535,90]
[408229937,1773268263463,-1157.37,0.00047535,90]
[408229938,1773268263473,-1157.37,0.00047535,90]
[408229939,1773268263481,-1157.37,0.00047535,90]
[408229940,1773268263492,-1157.37,0.00047535,90]
[408229941,1773268263502,-1157.37,0.00047535,90]
[408229942,1773268263512,-1157.37,0.00047535,90]
[408229943,1773268263522,-1157.50548372,0.00047535,90]
[408229944,1773268263534,-1097.1,0.00047535,120]
[408229945,1773268263544,-1097.1,0.00047535,120]
[408229946,1773268263554,-1097.1,0.00047535,120]
[408229947,1773268263566,-1097.1,0.00047535,120]
[408229948,1773268263575,-1097.1,0.00047535,120]
[408229949,1773268263585,-1097.1,0.00047535,120]
[408229950,1773268263593,-1097.1,0.00047535,120]
[408229951,1773268263601,-1097.1,0.00047535,120]
[408229952,1773268263610,-1097.1,0.00047535,120]
[408229953,1773268263619,-1097.1,0.00047535,120]
[408229954,1773268263629,-1097.1,0.00047535,120]
[408229955,1773268263638,-1097.1,0.00047535,120]
[408229956,1773268263647,-1097.1,0.00047535,120]
[408229957,1773268263656,-1097.1,0.00047535,120]
[408229958,1773268263666,-1097.1,0.00047535,120]
[408229959,1773268263675,-1097.1,0.00047535,120]
[408229960,1773268263685,-1097.1,0.00047535,120]
[408229961,1773268263694,-1097.1,0.00047535,120]
[408229962,1773268263704,-1097.1,0.00047535,120]
[408229963,1773268263713,-1097.1,0.00047535,120]
[408229964,1773268263722,-1097.1,0.00047535,120]
[408229965,1773268263731,-1097.1,0.00047535,120]
[408229966,1773268263740,-1097.1,0.00047535,120]
[408229967,1773268263749,-1097.27805738,0.00047535,120]
[408229968,1773268263758,-2637.9,0.00047535,120]
[408229969,1773268263768,-2637.9,0.00047535,120]
[408229970,1773268263777,-2637.9,0.00047535,120]
[408229971,1773268263787,-2637.9,0.00047535,120]
[408229972,1773268263796,-2637.9,0.00047535,120]
[408229973,1773268263806,-2637.9,0.00047535,120]
[408229974,1773268263815,-2637.9,0.00047535,120]
[408229975,1773268263824,-2637.9,0.00047535,120]
[408229976,1773268263834,-2637.9,0.00047535,120]
[408229977,1773268263844,-2637.9,0.00047535,120]
[408229978,1773268263853,-2637.9,0.00047535,120]
[408229979,1773268263863,-2637.9,0.00047535,120]
[408229980,1773268263873,-2637.9,0.00047535,120]
[408229981,1773268263882,-2637.9,0.00047535,120]
[408229982,1773268263892,-2637.9,0.00047535,120]
[408229983,1773268263902,-2637.9,0.00047535,120]
[408229984,1773268263911,-2637.9,0.00047535,120]
[408229985,1773268263920,-2637.9,0.00047535,120]
[408229986,1773268263929,-2637.9,0.00047535,120]
[408229987,1773268263938,-2637.9,0.00047535,120]
[408229988,1773268263947,-2637.9,0.00047535,120]
[408229989,1773268263957,-2637.9,0.00047535,120]
[408229990,1773268263967,-2637.9,0.00047535,120]
[408229991,1773268263976,-2638.06063009,0.00047535,120]
[408229992,1773268263986,-2806.0,0.0004754,16]
[408229993,1773268263998,-500.34412117,0.00047547,84]
[408229994,1773268264008,-1000.0,0.00047565,3]
[408229995,1773268264018,-334.16525924,0.00047565,3]
[408229996,1773268264027,-1523.55976764,0.00047565,3]
[408229997,1773268264036,-1000.0,0.00047565,3]
[408229998,1773268264046,-1000.0,0.00047584,14]
[408229999,1773268264056,-1000.0,0.0004761,14]
[408230000,1773268264065,-150.0,0.00047622,120]
[408230001,1773268264075,-153.40222115,0.00047685,120]
[408230002,1773268264084,-1000.0,0.00047691,14]
[408230003,1773268264094,-19756.0,0.000477,60]
[408230004,1773268264103,-158.48448498,0.00047781,30]
[408230005,1773268264114,-871.4,0.00047798,120]
[408230006,1773268264123,-334.67,0.00047873,30]
[408230007,1773268264133,-1000.0,0.00047904,14]
[408230008,1773268264142,-282.43651056,0.00047989,120]
[408230009,1773268264151,-500.0,0.00047989,30]
[408230010,1773268264161,-506.85,0.00047999,120]
[408230011,1773268264169,-500.0,0.00047999,120]
[408230012,1773268264182,-500.0,0.00047999,120]
[408230013,1773268264327,-500.0,0.00047999,30]
[408230014,1773268264340,-500.0,0.00047999,120]
[408230015,1773268264349,-500.0,0.00047999,120]
[408230016,1773268264359,-500.0,0.00047999,120]
[408230017,1773268264369,-43361.96605808,0.00048,120]
[408230018,1773268264378,-1811.58452742,0.00048,120]
[408230019,1773268264387,-874.0397909,0.00048,120]
[408230020,1773268264396,-922.0,0.00048235,2]
[408230021,1773268264405,-1213.0,0.00048235,2]
[408230022,1773268264414,-1043.0,0.00048235,2]
[408230023,1773268264424,-620.0,0.00048235,2]
[408230024,1773268264434,-3506.0,0.00048235,2]
[408230025,1773268264444,-158.48448498,0.00048301,30]
[408230026,1773268264453,-208.8,0.00048348,120]
[408230027,1773268264464,-250.46,0.00048348,120]
[408230028,1773268264473,-500.0,0.00048356,60]
[408230029,1773268264483,-500.0,0.00048356,60]
[408230030,1773268264494,-2755.1151167,0.00048412,2]
[408230031,1773268264504,-509.0,0.000485,31]
[408230032,1773268264514,-1000.0,0.00048511,14]
[408230033,1773268264523,-500.0,0.00048535,2]
[408230034,1773268264533,-500.0,0.00048535,2]
[408230035,1773268264545,-500.0,0.00048535,2]
[408230036,1773268264555,-500.0,0.00048535,2]
[408230037,1773268264566,-500.0,0.00048535,2]
[408230038,1773268264576,-500.0,0.00048535,2]
[408230039,1773268264586,-500.0,0.00048535,2]
[408230040,1773268264595,-500.0,0.00048535,2]
[408230041,1773268264605,-500.0,0.00048535,2]
[408230042,1773268264615,-500.0,0.00048535,2]
[408230043,1773268264624,-500.0,0.00048535,2]
[408230044,1773268264634,-500.0,0.00048535,2]
[408230045,1773268264645,-504.0,0.00048535,2]
[408230046,1773268264655,-1000.0,0.00048645,14]
[408230047,1773268264664,-2643.88,0.0004867,90]
[408230048,1773268264674,-1000.0,0.00048671,14]
[408230049,1773268264684,-850.0,0.000487,31]
[408230050,1773268264694,-1000.0,0.0004878,14]
[408230051,1773268264704,-3425.01,0.000488,14]
[408230052,1773268264713,-150.0,0.0004882,120]
[408230053,1773268264723,-1000.0,0.00048839,14]
[408230054,1773268264733,-155.81282612,0.000489,120]
[408230055,1773268264743,-155.8128261,0.000489,120]
[408230056,1773268264752,-155.8128261,0.000489,120]
[408230057,1773268264763,-1000.0,0.00048963,14]
[408230058,1773268264773,-150.0,0.0004898,14]
[408230059,1773268264783,-1000.0,0.00048984,14]
[408230060,1773268264796,-1000.0,0.0004899,14]
[408230061,1773268264806,-19277.74,0.00049,30]
[408230062,1773268264815,-2195.90164758,0.00049,120]
[408230063,1773268264824,-500.0,0.00049,120]
[408230064,1773268264834,-500.0,0.00049,120]
[408230065,1773268264844,-500.0,0.00049,120]
[408230066,1773268264854,-500.0,0.00049,120]
[408230067,1773268264863,-500.0,0.00049,120]
[408230068,1773268264874,-500.0,0.00049,120]
[408230069,1773268264885,-500.0,0.00049,120]
[408230070,1773268264896,-500.0,0.00049,120]
[408230071,1773268264905,-500.0,0.00049,120]
[408230072,1773268264915,-500.0,0.00049,120]
[408230073,1773268264932,-500.0,0.00049,120]
[408230074,1773268264944,-500.0,0.00049,120]
[408230075,1773268264954,-500.0,0.00049,120]
[408230076,1773268264964,-500.0,0.00049,120]
[408230077,1773268264973,-500.0,0.00049,120]
[408230078,1773268264984,-500.0,0.00049,120]
[408230079,1773268264993,-310.64,0.00049,120]
[408230080,1773268265003,-500.0,0.00049,120]
[408230081,1773268265012,-500.0,0.00049,120]
[408230082,1773268265022,-500.0,0.00049,120]
[408230083,1773268265032,-500.0,0.00049,120]
[408230084,1773268265043,-500.0,0.00049,120]
[408230085,1773268265053,-500.0,0.00049,120]
[408230086,1773268265063,-500.0,0.00049,120]
[408230087,1773268265074,-500.0,0.00049,120]
[408230088,1773268265084,-500.0,0.00049,120]
[408230089,1773268265095,-500.0,0.00049,120]
[408230090,1773268265105,-500.0,0.00049,120]
[408230091,1773268265113,-500.0,0.00049,120]
[408230092,1773268265120,-500.0,0.00049,120]
[408230093,1773268265129,-500.0,0.00049,120]
[408230094,1773268265139,-500.0,0.00049,120]
[408230095,1773268265148,-500.0,0.00049,120]
[408230096,1773268265158,-500.0,0.00049,120]
[408230097,1773268265168,-500.0,0.00049,120]
[408230098,1773268265178,-500.0,0.00049,120]
[408230099,1773268265188,-500.0,0.00049,120]
[408230100,1773268265198,-500.0,0.00049,120]
[408230101,1773268265207,-500.0,0.00049,120]
[408230102,1773268265217,-500.0,0.00049,120]
[408230103,1773268265228,-500.0,0.00049,120]
[408230104,1773268265238,-500.0,0.00049,120]
[408230105,1773268265248,-500.0,0.00049,120]
[408230106,1773268265258,-500.0,0.00049,120]
[408230107,1773268265266,-500.0,0.00049,120]
[408230108,1773268265276,-500.0,0.00049,120]
[408230109,1773268265286,-500.0,0.00049,120]
[408230110,1773268265296,-500.0,0.00049,120]
[408230111,1773268265306,-500.0,0.00049,120]
[408230112,1773268265317,-500.0,0.00049,120]
[408230113,1773268265327,-500.0,0.00049,120]
[408230114,1773268265337,-500.0,0.00049,120]
[408230115,1773268265347,-500.0,0.00049,120]
[408230116,1773268265357,-500.0,0.00049,120]
[408230117,1773268265368,-500.0,0.00049,120]
[408230118,1773268265378,-1091.16420161,0.00049,30]
[408230119,1773268265388,-150.0,0.00049018,14]
[408230120,1773268265398,-1000.0,0.00049039,14]
[408230121,1773268265408,-19756.0,0.0004905,60]
[408230122,1773268265417,-691.1057012,0.00049157,5]
[408230123,1773268265428,-150.0,0.00049187,14]
[408230124,1773268265437,-2755.1151167,0.00049199,2]
[408230125,1773268265447,-1000.0,0.00049272,14]
[408230126,1773268265457,-1000.0,0.00049281,14]
[408230127,1773268265467,-150.0,0.000493,39]
[408230128,1773268265477,-209.69,0.000493,120]
[408230129,1773268265487,-334.67,0.00049315,30]
[408230130,1773268265499,-150.0,0.00049361,30]
[408230131,1773268265510,-150.0,0.0004938,30]
[408230132,1773268265520,-1000.0,0.00049396,30]
[408230133,1773268265531,-150.00000001,0.00049414,30]
[408230134,1773268265541,-150.00000001,0.00049414,30]
[408230135,1773268265551,-150.00000001,0.00049414,30]
[408230136,1773268265560,-539.56,0.00049422,120]
[408230137,1773268265571,-1124.87855351,0.00049437,116]
[408230138,1773268265580,-500.0,0.00049452,60]
[408230139,1773268265590,-500.0,0.00049452,60]
[408230140,1773268265600,-1000.0,0.00049473,30]
[408230141,1773268265610,-1000.0,0.00049493,30]
[408230142,1773268265619,-150.0,0.00049561,30]
[408230143,1773268265629,-405.86,0.00049567,120]
[408230144,1773268265639,-305.21096534,0.00049567,120]
[408230145,1773268265649,-14886.44,0.0004969,120]